[Event "11th LCC FIDE Open 2019"]
[Site "London"]
[Date "2019.11.29"]
[Round "1.43"]
[White "Akots, Gabor"]
[Black "Davis, Holden"]
[Result "1-0"]
[ECO "A96"]
[WhiteElo "2221"]
[BlackElo "1840"]
[Annotator "ChessBase"]
[PlyCount "87"]
[EventDate "2019.11.29"]
[EventType "swiss"]
[EventCountry "ENG"]
[SourceTitle "playchess.com"]
[Source "ChessBase"]
[SourceQuality "1"]
[TimeControl "40/5400+30:1800+30"]

1. d4 {[%emt 0:00:00]} e6 {[%emt 0:00:00]} 2. c4 {[%emt 0:00:04]} f5 {[%emt 0:00:16]} 3. g3 {[%emt 0:00:54]} Nf6 {[%emt 0:00:08]} 4. Bg2 {[%emt 0:00:13]} Be7 {[%emt 0:00:05]} 5. Nf3 {[%emt 0:00:20]} O-O {[%emt 0:00:09]} 6. O-O {[%emt 0:00:12]} d6 {[%emt 0:00:18]} 7. Nc3 {[%emt 0:01:39]} a5 {[%emt 0:02:03]} 8. Qc2 {[%emt 0:06:48]} Nc6 {[%emt 0:06:51]} 9. e4 {[%emt 0:14:13]} e5 {[%emt 0:06:55]} 10. dxe5 {[%emt 0:07:26]} dxe5 {[%emt 0:10:14]} 11. exf5 {[%emt 0:00:39]} Ng4 {[%emt 0:07:50]} 12. Rd1 {[%emt 0:24:48]} Bxf5 {[%emt 0:08:53]} 13. Rxd8 {[%emt 0:00:28]} Bxc2 {[%emt 0:00:06]} 14. Rxa8 {[%emt 0:00:06]} Rxa8 {[%emt 0:00:06]} 15. h3 {[%emt 0:00:17]} Nf6 {[%emt 0:00:28]} 16. Be3 {[%emt 0:00:41]} Bd3 {[%emt 0:14:00]} 17. b3 {[%emt 0:07:55]} Bb4 {[%emt 0:07:39]} 18. Nb5 {[%emt 0:02:36]} a4 {[%emt 0:06:20]} 19. Rc1 {[%emt 0:17:11]} axb3 {[%emt 0:01:15]} 20. axb3 {[%emt 0:00:02]} e4 {[%emt 0:02:13]} 21. Ng5 {[%emt 0:02:01]} Na5 {[%emt 0:03:38]} 22. Nxc7 {[%emt 0:01:17]} Rc8 {[%emt 0:00:45]} 23. Nd5 {[%emt 0:00:10]} Nxd5 {[%emt 0:03:35]} 24. cxd5 {[%emt 0:00:05]} Rxc1+ {[%emt 0:00:06]} 25. Bxc1 {[%emt 0:00:03]} Nxb3 {[%emt 0:00:33]} 26. Be3 {[%emt 0:01:30]} Nc5 {[%emt 0:02:36]} 27. Bxc5 {[%emt 0:00:22]} Bxc5 {[%emt 0:00:05]} 28. Bxe4 {[%emt 0:00:41]} Bxe4 {[%emt 0:00:48]} 29. Nxe4 {[%emt 0:00:05]} Ba3 {[%emt 0:03:12]} 30. Kf1 {[%emt 0:00:37]} h6 {[%emt 0:00:13]} 31. Ke2 {[%emt 0:00:09]} Kf7 {[%emt 0:00:06]} 32. Kd3 {[%emt 0:02:37]} Ke7 {[%emt 0:05:18]} 33. Kc4 {[%emt 0:01:06]} Bb2 {[%emt 0:02:21]} 34. Kc5 {[%emt 0:00:34]} Kd7 {[%emt 0:02:13]} 35. f3 {[%emt 0:03:39]} Be5 {[%emt 0:01:27]} 36. f4 {[%emt 0:01:44]} Bc7 {[%emt 0:00:34]} 37. d6 {[%emt 0:00:46]} Ba5 {[%emt 0:00:12]} 38. Kd5 {[%emt 0:00:08]} Bb4 {[%emt 0:02:03]} 39. f5 {[%emt 0:01:23]} Be1 {[%emt 0:01:53]} 40. Nc5+ {[%emt 0:01:06]} Kc8 {[%emt 0:00:05]} 41. d7+ {[%emt 0:30:35]} Kc7 {[%emt 0:30:20]} 42. Ke6 {[%emt 0:00:23]} Bxg3 {[%emt 0:01:01]} 43. Nxb7 {[%emt 0:00:54]} Bh4 {[%emt 0:00:34]} 44. d8=Q+ {[%emt 0:00:44]} 1-0

[Event "11th LCC FIDE Open 2019"]
[Site "London"]
[Date "2019.11.29"]
[Round "1.44"]
[White "Chidichimo, Pedro Jose Maria"]
[Black "Papadiamandis, Elliot"]
[Result "1/2-1/2"]
[ECO "D03"]
[WhiteElo "1831"]
[BlackElo "2220"]
[Annotator "ChessBase"]
[PlyCount "74"]
[EventDate "2019.11.29"]
[EventType "swiss"]
[EventCountry "ENG"]
[SourceTitle "playchess.com"]
[Source "ChessBase"]
[SourceQuality "1"]
[TimeControl "40/5400+30:1800+30"]

1. d4 {[%emt 0:29:05]} Nf6 {[%emt 0:00:15]} 2. Nf3 {[%emt 0:00:05]} g6 {[%emt 0:00:06]} 3. Bg5 {[%emt 0:00:20]} Bg7 {[%emt 0:00:26]} 4. Nbd2 {[%emt 0:00:19]} d5 {[%emt 0:00:38]} 5. e3 {[%emt 0:00:58]} O-O {[%emt 0:00:31]} 6. Bd3 {[%emt 0:00:24]} b6 {[%emt 0:01:29]} 7. c3 {[%emt 0:10:43]} Bb7 {[%emt 0:00:59]} 8. Qb1 {[%emt 0:03:41]} Nbd7 {[%emt 0:05:55]} 9. O-O {[%emt 0:01:05]} h6 {[%emt 0:08:01]} 10. Bh4 {[%emt 0:02:33]} Qe8 {[%emt 0:02:05]} 11. Re1 {[%emt 0:13:00]} e6 {[%emt 0:11:02]} 12. b4 {[%emt 0:08:11]} a5 {[%emt 0:04:07]} 13. b5 {[%emt 0:11:30]} Nh5 {[%emt 0:05:15]} 14. g4 {[%emt 0:08:05]} Nhf6 {[%emt 0:01:07]} 15. h3 {[%emt 0:00:13]} Qc8 {[%emt 0:07:21]} 16. Rc1 {[%emt 0:06:26]} Ra7 {[%emt 0:03:37]} 17. Bg3 {[%emt 0:03:45]} Ne8 {[%emt 0:05:42]} 18. c4 {[%emt 0:05:15]} dxc4 {[%emt 0:01:12]} 19. Rxc4 {[%emt 0:00:22]} Qa8 {[%emt 0:02:31]} 20. Be4 {[%emt 0:02:02]} Nd6 {[%emt 0:04:50]} 21. Bxd6 {[%emt 0:04:14]} cxd6 {[%emt 0:00:53]} 22. Bxb7 {[%emt 0:00:23]} Qxb7 {[%emt 0:00:54]} 23. Rc6 {[%emt 0:01:06]} Nb8 {[%emt 0:01:34]} 24. Rc3 {[%emt 0:03:09]} f5 {[%emt 0:04:40]} 25. g5 {[%emt 0:02:23]} hxg5 {[%emt 0:03:20]} 26. Nxg5 {[%emt 0:00:50]} Qe7 {[%emt 0:01:19]} 27. h4 {[%emt 0:03:09]} Kh8 {[%emt 0:05:53]} 28. Qb3 {[%emt 0:00:39]} e5 {[%emt 0:02:49]} 29. Ndf3 {[%emt 0:00:39]} e4 {[%emt 0:00:57]} 30. Ne1 {[%emt 0:01:54]} Bf6 {[%emt 0:04:17]} 31. Ne6 {[%emt 0:00:28]} Rg8 {[%emt 0:01:35]} 32. Ng2 {[%emt 0:01:07]} Bxh4 {[%emt 0:00:44]} 33. Kf1 {[%emt 0:00:25]} g5 {[%emt 0:01:18]} 34. Rac1 {[%emt 0:02:33]} Nd7 {[%emt 0:01:20]} 35. Rc8 {[%emt 0:01:12]} Ra8 {[%emt 0:00:58]} 36. R8c7 {[%emt 0:00:33]} Rg6 {[%emt 0:02:15]} 37. d5 {[%emt 0:00:54]} Rf6 {[%emt 0:02:38]} 1/2-1/2

[Event "11th LCC FIDE Open 2019"]
[Site "London"]
[Date "2019.11.29"]
[Round "1.45"]
[White "Dong, Bao Nghia"]
[Black "Tombolis, Christopher"]
[Result "1-0"]
[ECO "D59"]
[WhiteElo "2217"]
[BlackElo "1824"]
[Annotator "ChessBase"]
[PlyCount "95"]
[EventDate "2019.11.29"]
[EventType "swiss"]
[EventCountry "ENG"]
[SourceTitle "playchess.com"]
[Source "ChessBase"]
[SourceQuality "1"]
[TimeControl "40/5400+30:1800+30"]

1. d4 {[%emt 0:00:50]} d5 {[%emt 0:00:00]} 2. c4 {[%emt 0:01:23]} e6 {[%emt 0:00:00]} 3. Nc3 {[%emt 0:00:16]} Nf6 {[%emt 0:00:00]} 4. Bg5 {[%emt 0:00:45]} Be7 {[%emt 0:00:00]} 5. e3 {[%emt 0:00:05]} O-O {[%emt 0:00:05]} 6. Nf3 {[%emt 0:00:04]} h6 {[%emt 0:00:05]} 7. Bh4 {[%emt 0:00:04]} b6 {[%emt 0:00:08]} 8. cxd5 {[%emt 0:02:39]} Nxd5 {[%emt 0:02:35]} 9. Nxd5 {[%emt 0:00:28]} exd5 {[%emt 0:07:43]} 10. Bxe7 {[%emt 0:00:56]} Qxe7 {[%emt 0:00:02]} 11. Rc1 {[%emt 0:00:10]} Bg4 {[%emt 0:07:16]} 12. Qc2 {[%emt 0:03:14]} c5 {[%emt 0:17:21]} 13. dxc5 {[%emt 0:09:11]} Rc8 {[%emt 0:00:11]} 14. b4 {[%emt 0:00:37]} bxc5 {[%emt 0:02:35]} 15. bxc5 {[%emt 0:00:27]} Nd7 {[%emt 0:00:03]} 16. c6 {[%emt 0:00:35]} Bxf3 {[%emt 0:00:21]} 17. gxf3 {[%emt 0:00:04]} Ne5 {[%emt 0:00:06]} 18. c7 {[%emt 0:00:39]} Nxf3+ {[%emt 0:00:09]} 19. Kd1 {[%emt 0:00:06]} Qb4 {[%emt 0:02:09]} 20. Qc3 {[%emt 0:03:37]} Qa4+ {[%emt 0:00:21]} 21. Rc2 {[%emt 0:20:54]} d4 {[%emt 0:13:03]} 22. Qc6 {[%emt 0:00:28]} Qxc6 {[%emt 0:05:11]} 23. Rxc6 {[%emt 0:00:06]} dxe3 {[%emt 0:00:46]} 24. fxe3 {[%emt 0:00:31]} Ne5 {[%emt 0:00:31]} 25. Rc3 {[%emt 0:01:39]} Ng4 {[%emt 0:07:44]} 26. Ba6 {[%emt 0:12:35]} Nxe3+ {[%emt 0:07:03]} 27. Rxe3 {[%emt 0:01:17]} Rxc7 {[%emt 0:00:02]} 28. Rhe1 {[%emt 0:01:03]} Rd8+ {[%emt 0:00:57]} 29. Bd3 {[%emt 0:02:07]} Kf8 {[%emt 0:01:15]} 30. Ke2 {[%emt 0:02:16]} Rc3 {[%emt 0:03:24]} 31. Rb1 {[%emt 0:00:56]} Ra3 {[%emt 0:02:18]} 32. Bc4 {[%emt 0:01:09]} Ra4 {[%emt 0:01:11]} 33. Bb3 {[%emt 0:01:31]} Rh4 {[%emt 0:00:16]} 34. h3 {[%emt 0:00:32]} Rb4 {[%emt 0:02:44]} 35. Rc1 {[%emt 0:02:25]} Rb7 {[%emt 0:01:18]} 36. Rec3 {[%emt 0:00:05]} Rdd7 {[%emt 0:05:12]} 37. Rc8+ {[%emt 0:00:19]} Ke7 {[%emt 0:00:08]} 38. Ba4 {[%emt 0:00:11]} Rb2+ {[%emt 0:01:56]} 39. Ke3 {[%emt 0:00:12]} Rd6 {[%emt 0:03:54]} 40. R1c7+ {[%emt 0:00:17]} Kf6 {[%emt 0:01:14]} 41. Bb3 {[%emt 0:30:30]} a5 {[%emt 0:30:37]} 42. Rxf7+ {[%emt 0:00:38]} Kg6 {[%emt 0:00:08]} 43. Ra7 {[%emt 0:00:12]} Rh2 {[%emt 0:00:31]} 44. Bc2+ {[%emt 0:00:34]} Kh5 {[%emt 0:01:04]} 45. Rxg7 {[%emt 0:01:11]} Rxh3+ {[%emt 0:00:06]} 46. Kf4 {[%emt 0:00:28]} Rh1 {[%emt 0:04:31]} 47. Rc5+ {[%emt 0:00:11]} Kh4 {[%emt 0:00:02]} 48. Rg4+ {[%emt 0:00:06]} 1-0

[Event "11th LCC FIDE Open 2019"]
[Site "London"]
[Date "2019.11.29"]
[Round "1.46"]
[White "Saidmurodov, Shahjahon"]
[Black "Granat, Russell G"]
[Result "1-0"]
[ECO "C51"]
[WhiteElo "1782"]
[BlackElo "2207"]
[Annotator "ChessBase"]
[PlyCount "59"]
[EventDate "2019.11.29"]
[EventType "swiss"]
[EventCountry "ENG"]
[SourceTitle "playchess.com"]
[Source "ChessBase"]
[SourceQuality "1"]
[TimeControl "40/5400+30:1800+30"]

1. e4 {[%emt 0:00:00]} Nc6 {[%emt 0:00:00]} 2. Nf3 {[%emt 0:00:02]} e5 {[%emt 0:00:13]} 3. Bc4 {[%emt 0:00:10]} Bc5 {[%emt 0:00:25]} 4. b4 {[%emt 0:01:26]} Bxb4 {[%emt 0:00:37]} 5. c3 {[%emt 0:00:04]} Ba5 {[%emt 0:02:07]} 6. d4 {[%emt 0:00:29]} exd4 {[%emt 0:04:42]} 7. O-O {[%emt 0:00:08]} d6 {[%emt 0:04:44]} 8. cxd4 {[%emt 0:15:21]} Bb6 {[%emt 0:04:07]} 9. Bb2 {[%emt 0:11:10]} Bg4 {[%emt 0:06:54]} 10. d5 {[%emt 0:13:43]} Ne5 {[%emt 0:06:46]} 11. Bb5+ {[%emt 0:04:52]} Kf8 {[%emt 0:02:00]} 12. Nbd2 {[%emt 0:01:23]} Ne7 {[%emt 0:06:16]} 13. Qb3 {[%emt 0:04:14]} Bxf3 {[%emt 0:22:22]} 14. Nxf3 {[%emt 0:07:55]} N7g6 {[%emt 0:04:07]} 15. Nxe5 {[%emt 0:01:11]} Nxe5 {[%emt 0:00:45]} 16. Qg3 {[%emt 0:00:50]} Qe7 {[%emt 0:13:10]} 17. Kh1 {[%emt 0:00:36]} h5 {[%emt 0:03:59]} 18. f4 {[%emt 0:01:00]} Ng4 {[%emt 0:00:37]} 19. Rae1 {[%emt 0:02:26]} Rh6 {[%emt 0:03:56]} 20. h3 {[%emt 0:13:53]} Rg6 {[%emt 0:02:16]} 21. Qf3 {[%emt 0:00:35]} Qh4 {[%emt 0:01:15]} 22. f5 {[%emt 0:10:25]} Rg5 {[%emt 0:03:25]} 23. Re2 {[%emt 0:02:07]} Ne5 {[%emt 0:00:55]} 24. Bxe5 {[%emt 0:01:17]} dxe5 {[%emt 0:00:07]} 25. f6 {[%emt 0:00:39]} g6 {[%emt 0:01:02]} 26. Qa3+ {[%emt 0:00:31]} Kg8 {[%emt 0:00:05]} 27. Qe7 {[%emt 0:00:59]} Rf8 {[%emt 0:01:56]} 28. Rc2 {[%emt 0:02:44]} Rg3 {[%emt 0:01:15]} 29. Qxe5 {[%emt 0:01:24]} Rxh3+ {[%emt 0:00:29]} 30. gxh3 {[%emt 0:00:11]} 1-0

[Event "11th LCC FIDE Open 2019"]
[Site "London"]
[Date "2019.11.29"]
[Round "1.47"]
[White "Rocco, Federico"]
[Black "Covey, Jason"]
[Result "1-0"]
[ECO "C18"]
[WhiteElo "2207"]
[BlackElo "1773"]
[Annotator "ChessBase"]
[PlyCount "71"]
[EventDate "2019.11.29"]
[EventType "swiss"]
[EventCountry "ENG"]
[SourceTitle "playchess.com"]
[Source "ChessBase"]
[SourceQuality "1"]
[TimeControl "40/5400+30:1800+30"]

1. e4 {[%emt 0:00:00]} e6 {[%emt 0:00:00]} 2. d4 {[%emt 0:00:14]} d5 {[%emt 0:00:27]} 3. Nc3 {[%emt 0:00:13]} Bb4 {[%emt 0:00:26]} 4. e5 {[%emt 0:00:07]} Ne7 {[%emt 0:00:28]} 5. a3 {[%emt 0:00:09]} Bxc3+ {[%emt 0:00:09]} 6. bxc3 {[%emt 0:00:06]} c5 {[%emt 0:00:25]} 7. Qg4 {[%emt 0:00:11]} Qc7 {[%emt 0:00:18]} 8. Qxg7 {[%emt 0:00:08]} Rg8 {[%emt 0:00:05]} 9. Qxh7 {[%emt 0:00:08]} cxd4 {[%emt 0:00:28]} 10. Ne2 {[%emt 0:00:06]} Nbc6 {[%emt 0:00:25]} 11. f4 {[%emt 0:00:05]} Bd7 {[%emt 0:00:18]} 12. Qd3 {[%emt 0:00:19]} dxc3 {[%emt 0:00:26]} 13. Nxc3 {[%emt 0:00:08]} Rc8 {[%emt 0:00:24]} 14. Nb5 {[%emt 0:00:56]} Qd8 {[%emt 0:01:50]} 15. Nd6+ {[%emt 0:00:51]} Kf8 {[%emt 0:00:08]} 16. Nxc8 {[%emt 0:01:30]} Nxc8 {[%emt 0:00:18]} 17. g3 {[%emt 0:03:11]} Nb6 {[%emt 0:01:20]} 18. Bg2 {[%emt 0:00:40]} Nc4 {[%emt 0:02:34]} 19. O-O {[%emt 0:00:29]} Qb6+ {[%emt 0:07:39]} 20. Kh1 {[%emt 0:00:25]} Nd4 {[%emt 0:01:37]} 21. a4 {[%emt 0:03:52]} Nf5 {[%emt 0:02:07]} 22. Bh3 {[%emt 0:04:17]} Nfe3 {[%emt 0:07:35]} 23. Bxe3 {[%emt 0:09:23]} Nxe3 {[%emt 0:00:36]} 24. Rab1 {[%emt 0:01:06]} Qc5 {[%emt 0:01:45]} 25. Rfe1 {[%emt 0:00:52]} d4 {[%emt 0:02:22]} 26. Rxe3 {[%emt 0:00:28]} dxe3 {[%emt 0:04:13]} 27. Qxd7 {[%emt 0:00:14]} Qxc2 {[%emt 0:00:14]} 28. Qd1 {[%emt 0:04:02]} Qf2 {[%emt 0:02:03]} 29. Rxb7 {[%emt 0:00:45]} Kg7 {[%emt 0:01:57]} 30. Qg4+ {[%emt 0:03:41]} Kf8 {[%emt 0:00:40]} 31. Rxf7+ {[%emt 0:00:31]} Kxf7 {[%emt 0:00:07]} 32. Qxe6+ {[%emt 0:00:05]} Kf8 {[%emt 0:00:24]} 33. Qd6+ {[%emt 0:00:18]} Kf7 {[%emt 0:00:31]} 34. Qd7+ {[%emt 0:00:15]} Kg6 {[%emt 0:00:25]} 35. Bf5+ {[%emt 0:00:08]} Kh6 {[%emt 0:00:11]} 36. Qh7# {[%emt 0:00:04]} 1-0

[Event "11th LCC FIDE Open 2019"]
[Site "London"]
[Date "2019.11.29"]
[Round "1.49"]
[White "Hill, Alistair"]
[Black "Barasi, Paul Dl"]
[Result "1-0"]
[ECO "B28"]
[WhiteElo "2193"]
[BlackElo "1770"]
[Annotator "ChessBase"]
[PlyCount "63"]
[EventDate "2019.11.29"]
[EventType "swiss"]
[EventCountry "ENG"]
[SourceTitle "playchess.com"]
[Source "ChessBase"]
[SourceQuality "1"]
[TimeControl "40/5400+30:1800+30"]

1. e4 {[%emt 0:30:09]} c5 {[%emt 0:01:01]} 2. Nf3 {[%emt 0:00:05]} a6 {[%emt 0:00:27]} 3. c3 {[%emt 0:00:25]} g6 {[%emt 0:00:50]} 4. Be2 {[%emt 0:00:20]} Bg7 {[%emt 0:01:14]} 5. O-O {[%emt 0:00:07]} Nf6 {[%emt 0:05:44]} 6. e5 {[%emt 0:00:24]} Nd5 {[%emt 0:00:45]} 7. d4 {[%emt 0:00:02]} cxd4 {[%emt 0:00:40]} 8. cxd4 {[%emt 0:00:03]} O-O {[%emt 0:01:23]} 9. Qb3 {[%emt 0:01:08]} e6 {[%emt 0:13:13]} 10. Nc3 {[%emt 0:08:25]} Nxc3 {[%emt 0:03:52]} 11. bxc3 {[%emt 0:00:02]} Nc6 {[%emt 0:00:50]} 12. Ba3 {[%emt 0:05:19]} Re8 {[%emt 0:07:48]} 13. Nd2 {[%emt 0:04:39]} f6 {[%emt 0:09:50]} 14. exf6 {[%emt 0:04:02]} Bxf6 {[%emt 0:01:24]} 15. Ne4 {[%emt 0:00:06]} Be7 {[%emt 0:03:07]} 16. Bxe7 {[%emt 0:17:23]} Qxe7 {[%emt 0:03:05]} 17. Rfe1 {[%emt 0:02:35]} b5 {[%emt 0:07:13]} 18. Nc5 {[%emt 0:05:27]} Rb8 {[%emt 0:05:04]} 19. Bf3 {[%emt 0:04:34]} Na5 {[%emt 0:01:30]} 20. Qc2 {[%emt 0:03:33]} Rf8 {[%emt 0:02:59]} 21. Be4 {[%emt 0:03:18]} d6 {[%emt 0:07:26]} 22. Nd3 {[%emt 0:01:45]} Bd7 {[%emt 0:05:05]} 23. Nb4 {[%emt 0:02:04]} Qf6 {[%emt 0:01:41]} 24. Nxa6 {[%emt 0:06:05]} Rbc8 {[%emt 0:00:30]} 25. Re3 {[%emt 0:00:53]} Bc6 {[%emt 0:06:46]} 26. Bxc6 {[%emt 0:02:28]} Rxc6 {[%emt 0:00:06]} 27. Nb4 {[%emt 0:00:19]} Rcc8 {[%emt 0:02:35]} 28. Qe2 Rxc3 {[%emt 0:02:59]} 29. Rxc3 {[%emt 0:00:43]} Qxd4 {[%emt 0:00:03]} 30. Rac1 {[%emt 0:00:53]} Qxb4 {[%emt 0:00:11]} 31. Qxe6+ {[%emt 0:00:11]} Kh8 {[%emt 0:00:06]} 32. Rc8 {[%emt 0:00:29]} 1-0

[Event "11th LCC FIDE Open 2019"]
[Site "London"]
[Date "2019.11.29"]
[Round "1.50"]
[White "Drastik, Penelope"]
[Black "Russell, Christopher"]
[Result "1/2-1/2"]
[ECO "D24"]
[WhiteElo "1759"]
[BlackElo "2190"]
[Annotator "ChessBase"]
[PlyCount "78"]
[EventDate "2019.11.29"]
[EventType "swiss"]
[EventCountry "ENG"]
[SourceTitle "playchess.com"]
[Source "ChessBase"]
[SourceQuality "1"]
[TimeControl "40/5400+30:1800+30"]

1. d4 {[%emt 0:00:00]} e6 {[%emt 0:00:00]} 2. Nf3 {[%emt 0:00:00]} Nf6 {[%emt 0:00:11]} 3. c4 {[%emt 0:00:00]} d5 {[%emt 0:00:22]} 4. Nc3 {[%emt 0:00:00]} dxc4 {[%emt 0:00:05]} 5. e4 {[%emt 0:00:00]} Bb4 {[%emt 0:03:00]} 6. Bxc4 {[%emt 0:00:00]} Nxe4 {[%emt 0:13:48]} 7. O-O {[%emt 0:00:00]} Nf6 {[%emt 0:00:48]} 8. Qa4+ {[%emt 0:12:30]} Nc6 {[%emt 0:01:30]} 9. Ne5 {[%emt 0:00:13]} Be7 {[%emt 0:06:46]} 10. Nxc6 {[%emt 0:04:39]} bxc6 {[%emt 0:01:40]} 11. Qxc6+ {[%emt 0:00:04]} Bd7 {[%emt 0:00:22]} 12. Qf3 {[%emt 0:07:47]} O-O {[%emt 0:05:48]} 13. Bf4 {[%emt 0:06:54]} Rb8 {[%emt 0:09:59]} 14. b3 {[%emt 0:06:30]} Rb6 {[%emt 0:01:44]} 15. d5 {[%emt 0:07:10]} exd5 {[%emt 0:02:58]} 16. Nxd5 {[%emt 0:00:07]} Nxd5 {[%emt 0:00:12]} 17. Qxd5 {[%emt 0:04:46]} Rg6 {[%emt 0:04:26]} 18. Bg3 {[%emt 0:02:58]} Qc8 {[%emt 0:03:47]} 19. Qa5 {[%emt 0:06:10]} Bc6 {[%emt 0:04:22]} 20. f3 {[%emt 0:10:25]} Qa8 {[%emt 0:10:18]} 21. Bd3 {[%emt 0:03:17]} Rg5 {[%emt 0:03:05]} 22. Qxc7 {[%emt 0:01:35]} Bc5+ {[%emt 0:04:17]} 23. Kh1 {[%emt 0:00:58]} Rh5 {[%emt 0:01:21]} 24. Qf4 {[%emt 0:03:54]} Rd8 {[%emt 0:05:52]} 25. Bc4 {[%emt 0:02:05]} Rf8 {[%emt 0:02:43]} 26. Rae1 {[%emt 0:05:59]} Rh6 {[%emt 0:01:00]} 27. Qf5 {[%emt 0:03:23]} Bb4 {[%emt 0:01:27]} 28. Re3 {[%emt 0:01:00]} Rf6 {[%emt 0:00:56]} 29. Qg4 {[%emt 0:00:27]} Bc5 {[%emt 0:00:44]} 30. Re5 {[%emt 0:01:46]} Rg6 {[%emt 0:01:22]} 31. Rg5 {[%emt 0:00:41]} Bd7 {[%emt 0:01:15]} 32. Qh5 {[%emt 0:00:24]} Rxg5 {[%emt 0:05:09]} 33. Qxg5 {[%emt 0:00:08]} Qc6 {[%emt 0:02:00]} 34. Rc1 {[%emt 0:04:39]} Kh8 {[%emt 0:02:16]} 35. Bd3 {[%emt 0:03:28]} Be7 {[%emt 0:00:46]} 36. Rxc6 {[%emt 0:01:13]} Bxg5 {[%emt 0:00:07]} 37. Rc7 {[%emt 0:00:27]} Rd8 {[%emt 0:00:37]} 38. h4 {[%emt 0:02:25]} Be3 {[%emt 0:00:37]} 39. Bc4 {[%emt 0:00:17]} Bf5 {[%emt 0:00:55]} 1/2-1/2

[Event "11th LCC FIDE Open 2019"]
[Site "London"]
[Date "2019.11.29"]
[Round "1.51"]
[White "Cordes, Hans-Joerg"]
[Black "Gilmore, Samuel"]
[Result "1-0"]
[ECO "E32"]
[WhiteElo "2188"]
[BlackElo "1757"]
[Annotator "ChessBase"]
[PlyCount "33"]
[EventDate "2019.11.29"]
[EventType "swiss"]
[EventCountry "ENG"]
[SourceTitle "playchess.com"]
[Source "ChessBase"]
[SourceQuality "1"]
[TimeControl "40/5400+30:1800+30"]

1. d4 {[%emt 0:00:00]} Nf6 {[%emt 0:00:00]} 2. c4 {[%emt 0:00:00]} e6 {[%emt 0:00:00]} 3. Nc3 {[%emt 0:00:29]} Bb4 {[%emt 0:00:11]} 4. Qc2 {[%emt 0:00:41]} b6 {[%emt 0:01:00]} 5. e4 {[%emt 0:01:16]} Bb7 {[%emt 0:04:39]} 6. Bd3 {[%emt 0:02:13]} Bxc3+ {[%emt 0:09:49]} 7. bxc3 {[%emt 0:00:13]} d6 {[%emt 0:01:18]} 8. f4 {[%emt 0:05:56]} c5 {[%emt 0:06:32]} 9. Nf3 {[%emt 0:01:21]} h6 {[%emt 0:03:59]} 10. O-O {[%emt 0:01:11]} cxd4 {[%emt 0:03:21]} 11. cxd4 {[%emt 0:00:25]} d5 {[%emt 0:04:25]} 12. exd5 {[%emt 0:05:31]} exd5 {[%emt 0:01:46]} 13. Ba3 {[%emt 0:00:50]} Nc6 {[%emt 0:02:34]} 14. Rfe1+ {[%emt 0:03:45]} Kd7 {[%emt 0:02:13]} 15. cxd5 {[%emt 0:01:49]} Nxd5 {[%emt 0:02:56]} 16. Ne5+ {[%emt 0:01:07]} Nxe5 {[%emt 0:00:18]} 17. Bf5+ {[%emt 0:00:34]} 1-0

[Event "11th LCC FIDE Open 2019"]
[Site "London"]
[Date "2019.11.29"]
[Round "1.53"]
[White "Johnson, Daniel"]
[Black "Gaier, Walter"]
[Result "1-0"]
[ECO "E80"]
[WhiteElo "2186"]
[BlackElo "1750"]
[Annotator "ChessBase"]
[PlyCount "80"]
[EventDate "2019.11.29"]
[EventType "swiss"]
[EventCountry "ENG"]
[SourceTitle "playchess.com"]
[Source "ChessBase"]
[SourceQuality "1"]
[TimeControl "40/5400+30:1800+30"]

1. d4 {[%emt 0:33:31]} g6 {[%emt 0:00:36]} 2. c4 {[%emt 0:00:33]} Bg7 {[%emt 0:00:16]} 3. Nc3 {[%emt 0:01:00]} Nf6 {[%emt 0:01:09]} 4. e4 {[%emt 0:00:17]} d6 {[%emt 0:00:20]} 5. f3 {[%emt 0:00:07]} Nbd7 {[%emt 0:01:42]} 6. Nge2 {[%emt 0:01:52]} c5 {[%emt 0:15:50]} 7. d5 {[%emt 0:00:08]} a6 {[%emt 0:02:15]} 8. a4 {[%emt 0:01:25]} b6 {[%emt 0:03:24]} 9. Bg5 {[%emt 0:03:08]} Rb8 {[%emt 0:02:49]} 10. Ng3 {[%emt 0:03:19]} Qc7 {[%emt 0:04:56]} 11. Qd2 {[%emt 0:01:12]} h6 {[%emt 0:14:28]} 12. Be3 {[%emt 0:00:08]} h5 {[%emt 0:00:27]} 13. Be2 {[%emt 0:12:10]} Ne5 {[%emt 0:01:55]} 14. O-O {[%emt 0:01:06]} h4 {[%emt 0:02:52]} 15. Nh1 {[%emt 0:00:16]} h3 {[%emt 0:01:46]} 16. g3 {[%emt 0:08:51]} Bd7 {[%emt 0:01:54]} 17. Nf2 {[%emt 0:14:11]} Qc8 {[%emt 0:07:22]} 18. Kh1 {[%emt 0:09:14]} Ng8 {[%emt 0:06:08]} 19. Rae1 {[%emt 0:15:22]} Nh6 {[%emt 0:03:20]} 20. Qd1 {[%emt 0:04:49]} f6 {[%emt 0:04:42]} 21. Bc1 {[%emt 0:03:04]} Rh7 {[%emt 0:03:34]} 22. Qc2 {[%emt 0:11:37]} Kf7 {[%emt 0:03:15]} 23. f4 {[%emt 0:01:52]} Neg4 {[%emt 0:00:42]} 24. e5 {[%emt 0:01:17]} dxe5 {[%emt 0:00:30]} 25. Nxg4 {[%emt 0:01:43]} Bxg4 {[%emt 0:01:51]} 26. fxe5 {[%emt 0:00:46]} Bf5 {[%emt 0:02:16]} 27. e6+ {[%emt 0:00:24]} Kg8 {[%emt 0:00:30]} 28. Bd3 {[%emt 0:00:14]} Bxd3 {[%emt 0:06:25]} 29. Qxd3 {[%emt 0:00:06]} Nf5 {[%emt 0:00:28]} 30. Rxf5 {[%emt 0:01:13]} gxf5 {[%emt 0:00:09]} 31. d6 {[%emt 0:00:39]} Qc6+ {[%emt 0:01:06]} 32. Nd5 {[%emt 0:00:08]} exd6 {[%emt 0:02:44]} 33. Qxf5 {[%emt 0:00:52]} Re8 {[%emt 0:00:59]} 34. Kg1 {[%emt 0:00:29]} Qxa4 {[%emt 0:01:39]} 35. Qg6 {[%emt 0:00:30]} Kh8 {[%emt 0:01:32]} 36. e7 {[%emt 0:00:30]} Qc6 {[%emt 0:00:59]} 37. Bd2 {[%emt 0:00:32]} b5 {[%emt 0:00:27]} 38. b3 {[%emt 0:00:18]} b4 {[%emt 0:00:41]} 39. Re2 {[%emt 0:00:35]} Qd7 {[%emt 0:00:31]} 40. Bc1 {[%emt 0:00:33]} Qc6 {[%emt 0:07:46]} 1-0